bitfinex/quotes_ETHUSD_20250318
["timestamp","ask_amount","ask_price","bid_price","bid_amount"]
[1742331363838,2.02762096,1910.6,1910.5,9.04325]
[1742331364467,2.02762096,1910.6,1910.5,9.12366226]
[1742331364785,2.02762096,1910.6,1910.5,11.19519629]
[1742331365370,2.02762096,1910.7,1910.6,6.04305]
[1742331365685,2.02762096,1910.9,1910.8,9.04251]
[1742331365989,2.02762096,1910.9,1910.8,9.12228376]
[1742331367188,3.37595478,1911.0,1910.9,5.23305]
[1742331367866,3.37595478,1911.0,1910.9,5.31282376]
[1742331368199,3.37595478,1911.0,1910.9,6.74834514]
[1742331372307,22.3700517,1911.3,1911.2,5.23231]
[1742331372471,25.74600648,1911.3,1911.2,5.23231]
[1742331372673,26.13240434,1911.3,1911.2,5.23231]
[1742331372883,26.13240434,1911.3,1911.2,5.31208376]
[1742331374196,26.13240434,1911.3,1911.2,0.07977376]
[1742331374560,26.13240434,1911.3,1911.2,5.23231]
[1742331374765,34.74044912,1911.3,1911.0,5.23275]
[1742331374964,3.37595478,1911.1,1911.0,5.23275]
[1742331376625,3.37595478,1911.1,1911.0,5.23286]
[1742331376997,3.37595478,1911.1,1910.9,5.23309]
[1742331377195,3.37595478,1911.1,1910.9,5.23299]
[1742331377428,3.37595478,1911.1,1911.0,5.23286]
[1742331380515,3.37595478,1911.1,1910.9,5.23299]
[1742331380931,3.37595478,1911.1,1910.9,10.46597]
[1742331381229,3.37595478,1911.1,1911.0,5.23286]
[1742331382427,3.37595478,1911.1,1911.0,5.30969666]
[1742331382735,3.37595478,1911.1,1911.0,0.07683666]
[1742331383890,3.37595478,1911.1,1911.0,5.30969666]
[1742331385324,3.37595478,1911.1,1911.0,0.07683666]
[1742331386706,8.60853478,1911.1,1911.0,0.07683666]
[1742331387031,8.60853478,1911.1,1911.0,0.0714341]
[1742331387407,8.60853478,1911.1,1910.7,10.46709]
[1742331387595,3.37595478,1910.8,1910.7,5.23351]
[1742331388205,3.37595478,1910.8,1910.7,0.0714341]
[1742331389017,8.60936478,1910.8,1910.5,5.23421]
[1742331389296,3.37595478,1910.6,1910.4,5.23441]
[1742331389493,8.60999478,1910.6,1910.2,5.23492]
[1742331389712,3.37595478,1910.3,1910.2,5.23492]
[1742331390648,3.37595478,1910.3,1910.1,5.23511]
[1742331390788,3.37595478,1910.3,1910.0,5.23543]
[1742331390993,3.37595478,1910.1,1910.0,5.23543]
[1742331391529,3.37595478,1910.1,1909.9,5.23571]
[1742331391921,3.77330629,1910.1,1910.0,5.2356]
[1742331392235,8.70530629,1910.1,1910.0,5.2356]
[1742331399145,3.77330629,1910.1,1910.0,5.2356]
[1742331399453,8.70630629,1910.1,1910.0,5.2356]
[1742331399601,8.70630629,1910.1,1910.0,6.0398]
[1742331401753,3.37595478,1910.1,1910.0,6.0398]
[1742331401904,8.30895478,1910.3,1910.2,5.23505]
[1742331403203,8.30895478,1910.3,1910.2,5.3075851]
[1742331403521,8.69913592,1910.3,1910.2,5.3075851]
[1742331404106,8.30895478,1910.3,1910.2,5.3075851]
[1742331404306,8.30895478,1910.3,1910.2,6.36186261]
[1742331405362,3.37595478,1910.3,1910.2,6.36186261]
[1742331405562,3.37595478,1910.3,1910.2,7.16606261]
[1742331406223,8.30895478,1910.5,1910.4,5.2345]
[1742331406726,3.37595478,1910.5,1910.4,5.2345]
[1742331406926,3.37595478,1910.5,1910.4,7.1581511]
[1742331407126,3.37595478,1910.7,1910.6,5.23395]
[1742331407655,3.37595478,1910.7,1910.6,5.3064851]
[1742331408353,3.37595478,1910.7,1910.6,6.0580851]
[1742331408856,3.37595478,1910.7,1910.6,5.3064851]
[1742331410320,3.37595478,1910.7,1910.6,6.44373461]
[1742331411315,3.37595478,1910.9,1910.8,5.23341]
[1742331411536,8.30795478,1910.9,1910.8,5.23341]
[1742331411730,8.30795478,1910.9,1910.8,5.30542764]
[1742331412439,8.30795478,1910.9,1910.8,6.13732764]
[1742331412640,8.30795478,1910.9,1910.8,5.30542764]
[1742331413560,3.7657774,1910.9,1910.8,5.30542764]
[1742331413755,3.7657774,1910.9,1910.8,6.3593244]
[1742331415336,3.37595478,1910.9,1910.8,7.1912244]
[1742331417466,0.39096577,1911.0,1910.9,8.23313]
[1742331417848,0.39096577,1911.0,1910.9,8.30431092]
[1742331418061,3.37595478,1911.1,1911.0,5.23286]
[1742331418654,3.37595478,1911.1,1911.0,5.30404092]
[1742331422694,3.37595478,1911.1,1911.0,6.13594092]
[1742331424086,3.37595478,1911.1,1911.0,5.30404092]
[1742331424461,3.37595478,1911.1,1911.0,0.06826985]
[1742331425698,3.37595478,1911.1,1910.9,5.23311]
[1742331425988,3.37595478,1911.0,1910.9,5.23311]
[1742331426363,3.37595478,1911.0,1910.7,8.23365]
[1742331426689,3.37595478,1910.8,1910.7,8.23356]
[1742331427387,3.37595478,1910.8,1910.7,5.23356]
[1742331432101,3.37595478,1910.8,1910.7,5.29707851]
[1742331433691,3.37595478,1910.8,1910.7,0.06351851]
[1742331433886,3.44137898,1910.8,1910.4,5.23436]
[1742331434089,3.37595478,1910.5,1910.4,10.46864]
[1742331434288,3.37595478,1910.5,1910.4,5.23428]
[1742331434593,8.30595478,1910.5,1910.3,5.23471]
[1742331434792,8.30595478,1910.5,1910.3,5.23465]
[1742331435089,8.30595478,1910.5,1910.3,5.23456]
[1742331435291,8.30595478,1910.5,1910.4,5.2345]
[1742331437253,8.70010305,1910.5,1910.4,5.2345]
[1742331441602,8.70010305,1910.5,1910.4,5.29641038]
[1742331443517,8.70010305,1910.5,1910.4,0.06191038]
[1742331443919,8.70010305,1910.5,1910.3,5.23469]
[1742331444105,3.37595478,1910.4,1910.3,5.23469]
[1742331444408,3.37595478,1910.4,1910.2,10.46987]
[1742331444619,3.37595478,1910.4,1910.3,5.23477]
[1742331448324,3.37595478,1910.4,1910.3,5.29668038]
[1742331455323,8.30595478,1910.4,1910.3,5.29668038]
[1742331456426,0.39414827,1910.5,1910.4,5.2345]
[1742331456625,17.321,1910.9,1910.8,5.23341]
[1742331456835,22.251,1910.9,1910.8,5.23341]
[1742331457038,17.321,1910.9,1910.8,5.23341]
[1742331457364,22.251,1910.9,1910.8,5.29541945]
[1742331458325,17.321,1910.9,1910.8,5.29541945]
[1742331458699,20.69695478,1910.9,1910.8,5.29541945]
[1742331458905,0.1140517,1911.3,1911.2,5.23231]
[1742331459128,8.42000648,1911.3,1911.2,5.23231]
[1742331459644,8.42000648,1911.3,1911.2,5.2291807]
[1742331460725,3.49000648,1911.3,1911.2,5.2291807]
[1742331461041,8.42000648,1911.3,1911.2,5.2291807]
[1742331461585,8.81315433,1911.3,1911.2,5.2291807]
[1742331463208,8.81315433,1911.3,1911.2,5.29431945]
[1742331463435,8.42000648,1911.3,1911.2,5.29431945]
[1742331465259,11.79596126,1911.3,1910.8,5.2334]
[1742331465412,3.37595478,1911.0,1910.9,5.23313]
[1742331465607,3.37595478,1911.0,1910.9,5.29201131]
[1742331466208,3.37595478,1911.0,1910.9,6.34454144]
[1742331466415,3.37595478,1911.0,1910.9,7.10104144]
[1742331469625,5.0430517,1911.3,1911.2,5.23231]
[1742331469835,8.41900648,1911.3,1911.2,5.23231]
[1742331470038,13.65118648,1911.3,1910.9,5.233]
[1742331470235,13.65118648,1911.3,1911.2,0.05688451]
[1742331470549,13.65118648,1911.3,1911.2,0.05674146]
[1742331470727,17.02714126,1911.3,1910.9,5.00757074]
[1742331471045,3.37595478,1911.0,1910.9,5.00757074]
[1742331472954,3.37595478,1911.0,1910.9,5.06452128]
[1742331478553,8.30395478,1911.0,1910.9,5.06452128]
[1742331479053,3.37595478,1911.0,1910.9,5.84242128]
[1742331479257,3.37595478,1911.0,1910.9,5.06452128]
[1742331500182,3.37595478,1911.0,1910.9,0.05704956]
[1742331500183,8.60881478,1911.0,1910.9,0.05704956]
[1742331500386,8.60881478,1911.0,1910.7,5.23354]
[1742331500584,3.37595478,1910.8,1910.7,10.4671]
[1742331500783,8.30395478,1910.8,1910.7,10.4671]
[1742331501296,8.30395478,1910.8,1910.7,5.23354]
[1742331504507,3.37595478,1910.8,1910.7,6.04074]
[1742331504794,3.37595478,1910.8,1910.7,7.168198]
[1742331506800,3.37595478,1910.8,1910.7,6.04074]
[1742331507798,3.37595478,1910.8,1910.7,6.09588423]
[1742331513215,2.02623967,1910.8,1910.7,6.09588423]
[1742331517785,2.02623967,1910.8,1910.7,5.28868423]
[1742331520243,2.02623967,1910.8,1910.7,6.10818423]
[1742331522658,0.51176166,1911.3,1911.2,5.23231]
[1742331522959,7.46500133,1911.3,1911.2,5.2870134]
[1742331523236,7.46500133,1911.3,1911.2,0.0547034]
[1742331523617,7.46500133,1911.3,1911.1,10.46493]
[1742331523819,4.05247934,1911.2,1911.1,10.46493]
[1742331524421,4.05247934,1911.2,1911.1,5.23246]
[1742331524750,2.02623967,1911.2,1911.1,5.23246]
[1742331526336,6.95323967,1911.2,1911.1,5.23246]
[1742331526550,2.02623967,1911.2,1911.1,5.23246]
[1742331530765,11.28475,1911.0,1910.6,0.7994]
[1742331530930,2.02623967,1910.7,1910.6,6.03328]
[1742331531260,2.02623967,1910.7,1910.6,9.03328]
[1742331531562,2.02623967,1910.7,1910.6,9.52412272]
[1742331531761,2.02623967,1910.8,1910.7,5.23359]
[1742331531927,2.02623967,1910.8,1910.7,6.03299]
[1742331532118,2.02623967,1910.9,1910.8,9.03281]
[1742331534172,2.02623967,1910.9,1910.8,15.17281]
[1742331535339,2.02623967,1910.9,1910.8,14.37341]
[1742331537242,2.02623967,1910.9,1910.8,15.17281]
[1742331538170,2.02623967,1910.9,1910.8,9.08344649]
[1742331538325,2.02623967,1910.9,1910.8,10.71506567]
[1742331539878,4.926,1911.1,1911.0,5.23286]
[1742331540473,4.926,1911.1,1911.0,5.28349649]
[1742331540956,6.95223967,1911.1,1911.0,5.28349649]
[1742331543366,6.95223967,1911.1,1911.0,6.08289649]
[1742331543551,6.95223967,1911.1,1911.0,7.21448814]
[1742331545152,6.95223967,1911.1,1911.0,6.41508814]
[1742331547493,4.926,1911.1,1911.0,6.41508814]
[1742331547690,6.95223967,1911.1,1911.0,6.41508814]
[1742331554087,2.02623967,1911.1,1911.0,6.41508814]
[1742331554293,0.1140517,1911.3,1911.2,9.03921]
[1742331554480,0.1140517,1911.3,1911.2,10.466378]
[1742331554652,0.1140517,1911.3,1911.2,10.51669543]
[1742331556856,2.14029137,1911.3,1911.2,10.51669543]
[1742331557055,2.14029137,1911.3,1911.2,9.08952743]
[1742331559457,0.1140517,1911.3,1911.2,9.08952743]
[1742331563569,2.14029137,1911.3,1911.2,8.28262743]
[1742331566311,0.1140517,1911.3,1911.2,8.28262743]
[1742331566818,2.14029137,1911.3,1911.2,8.28262743]
[1742331566988,2.14029137,1911.3,1911.2,9.63413717]
[1742331567177,0.1140517,1911.3,1911.2,9.63413717]
[1742331567377,2.14029137,1911.3,1911.2,9.63413717]
[1742331570307,2.14029137,1911.3,1911.2,5.28262743]
[1742331570483,2.14029137,1911.3,1911.2,5.23231]
[1742331571774,2.14029137,1911.3,1911.1,5.23247]
[1742331572014,4.05247934,1911.2,1911.1,5.23247]
[1742331572179,6.94923967,1911.2,1911.1,5.23247]
[1742331574320,7.3394613,1911.2,1911.1,5.23247]
[1742331578420,7.3394613,1911.2,1911.0,5.23271]
[1742331578629,2.02623967,1911.1,1911.0,5.23271]
[1742331581527,0.1140517,1911.3,1911.2,5.23231]
[1742331581819,2.14029137,1911.3,1911.2,5.23231]
[1742331583384,2.14029137,1911.3,1911.2,6.357918]
[1742331583587,0.1140517,1911.3,1911.2,10.149218]
[1742331586422,1.7e-06,1911.3,1911.2,10.149218]
[1742331594436,1.7e-06,1911.3,1911.2,10.63867196]
[1742331595557,1.7e-06,1911.3,1911.2,11.12796446]
[1742331596781,1.7e-06,1911.3,1911.2,17.26796446]
[1742331597816,1.7e-06,1911.3,1911.2,16.7785105]
[1742331599827,1.7e-06,1911.3,1911.2,17.8396643]
[1742331600757,1.7e-06,1911.3,1911.2,18.32866126]
[1742331600957,1.7e-06,1911.3,1911.2,23.80066126]
[1742331602330,0.26010703,1912.1,1912.0,5.23012]
[1742331602532,8.29622003,1912.1,1912.0,5.23012]
[1742331602763,8.29622003,1912.1,1911.9,5.23028]
[1742331603067,3.37422003,1912.0,1911.9,4.5941881]
[1742331603962,3.37422003,1912.0,1911.6,5.23111]
[1742331603963,8.60444003,1912.0,1911.6,5.23111]
[1742331604263,3.37422003,1911.7,1911.6,5.23111]
[1742331604429,8.69116191,1911.7,1911.6,5.23111]
[1742331604824,8.29622003,1911.7,1911.6,5.23111]
[1742331607680,13.92543638,1911.7,1911.4,5.23174]
[1742331607881,3.37422003,1911.5,1911.4,5.23174]
[1742331608094,3.37422003,1911.5,1911.3,5.23201]
[1742331608301,3.37422003,1911.5,1911.2,5.23223]
[1742331608582,3.37422003,1911.3,1911.2,10.46446]
[1742331608784,8.29522003,1911.3,1911.2,10.46446]
[1742331610990,8.29522003,1911.3,1911.2,5.23223]
[1742331616397,8.29522003,1911.3,1911.1,5.23256]
[1742331616398,2.848702,1911.2,1911.0,5.23276]
[1742331616693,3.37422003,1911.1,1911.0,5.23269]
[1742331617694,3.37422003,1911.1,1910.9,4.11134625]
[1742331618051,3.77591507,1911.1,1910.9,4.11134625]
[1742331618757,3.77591507,1911.1,1910.9,9.34431625]
[1742331618995,3.77591507,1911.1,1910.9,9.34433625]
[1742331619591,3.77591507,1911.1,1910.9,4.11134625]
[1742331619796,3.77591507,1911.1,1910.9,9.34433625]
[1742331620269,3.77591507,1911.1,1910.9,9.34437625]
[1742331622677,3.77591507,1911.1,1911.0,5.23286]
[1742331623295,8.29622003,1911.1,1911.0,5.23286]
[1742331624190,17.315,1911.4,1911.3,5.23204]
[1742331624508,25.61122003,1911.4,1911.3,5.23204]
[1742331626474,8.29622003,1911.4,1911.3,5.23204]
[1742331626976,8.69310748,1911.4,1911.3,5.23204]
[1742331635421,3.77110748,1911.4,1911.3,5.23204]
[1742331635624,8.69310748,1911.4,1911.3,5.23204]
[1742331636994,3.77110748,1911.4,1911.3,5.23204]
[1742331643140,2.42196455,1911.4,1911.3,5.23204]
[1742331643440,2.0250771,1911.4,1911.3,5.23204]
[1742331643640,2.0250771,1911.4,1911.3,6.05294]
[1742331644817,17.315,1911.8,1911.7,5.23094]
[1742331645022,19.3400771,1911.8,1911.7,5.23094]
[1742331645230,25.60967095,1911.8,1911.7,5.23094]
[1742331645730,3.37367095,1911.8,1911.7,5.23094]
[1742331646162,3.37367095,1911.8,1911.7,6.05184]
[1742331646822,3.37367095,1911.8,1911.7,7.180134]
[1742331647022,0.26995817,1912.1,1911.9,5.23039]
[1742331647217,17.313,1912.4,1912.2,5.22948]
[1742331647424,17.313,1912.4,1912.3,5.2293]
[1742331647617,22.234,1912.4,1912.3,5.2293]
[1742331648143,22.49334813,1912.4,1912.3,5.2293]
[1742331648706,25.86701908,1912.4,1912.2,5.22946]
[1742331648939,26.26976435,1912.4,1912.3,5.2293]
[1742331649947,26.26976435,1912.4,1912.2,10.45893]
[1742331650241,26.26976435,1912.4,1912.3,5.2293]
[1742331650743,26.26976435,1912.4,1912.2,10.45894]
[1742331650906,26.26976435,1912.4,1912.3,5.2293]
[1742331651750,26.26976435,1912.4,1912.2,10.45885]
[1742331652852,31.49883435,1912.4,1912.0,5.23011]
[1742331653009,3.37367095,1912.1,1912.0,5.23011]
[1742331658234,3.37367095,1912.1,1912.0,6.02301]
[1742331660277,3.37367095,1912.1,1912.0,5.23011]
[1742331665242,2.0238401,1912.1,1912.0,10.46014]
[1742331665773,2.0238401,1912.1,1912.0,5.23003]
[1742331667177,3.37320239,1912.1,1912.0,5.22997]
[1742331667473,3.37320239,1912.1,1911.9,5.23029]
[1742331667640,5.23029,1911.9,1911.7,5.23085]
[1742331667978,3.37320239,1911.9,1911.7,10.46162]
[1742331668176,3.37320239,1911.9,1911.6,5.23095]
[1742331668381,3.37320239,1911.7,1911.6,5.23095]
[1742331673450,3.37320239,1911.7,1911.6,5.99725]
[1742331673977,3.37320239,1911.7,1911.6,7.420112]
[1742331683795,3.37320239,1912.0,1911.9,5.23039]
[1742331683998,3.37320239,1912.0,1911.9,5.98979]
[1742331685879,3.37320239,1912.0,1911.9,5.23039]
[1742331689771,3.37320239,1912.0,1911.9,6.04909]
[1742331689995,3.37320239,1912.0,1911.9,7.177054]
[1742331691922,3.37320239,1912.0,1911.9,6.04909]
[1742331692906,3.37320239,1912.0,1911.9,5.23039]
[1742331693081,2.02370787,1912.0,1911.9,5.23039]
[1742331705601,0.6566655,1912.4,1912.3,5.2293]
[1742331705808,6.94070787,1912.4,1912.3,5.2293]
[1742331707141,8.28889264,1912.4,1912.3,5.2293]
[1742331707508,0.2657046,1912.5,1912.4,5.22903]
[1742331707704,8.28889264,1912.5,1912.4,5.22903]
[1742331707910,8.28889264,1912.5,1912.4,4.23603]
[1742331708110,8.28889264,1912.5,1912.3,5.22919]
[1742331708439,8.28889264,1912.5,1912.2,10.45898]
[1742331708645,3.37189264,1912.3,1912.2,5.22943]
[1742331709541,3.37189264,1912.3,1912.1,5.22981]
[1742331709731,3.37189264,1912.3,1912.2,5.22943]
[1742331714716,3.37189264,1912.3,1912.1,5.2297]
[1742331714917,3.37189264,1912.3,1912.1,10.45941]
[1742331715118,3.37189264,1912.3,1912.1,5.2297]
[1742331718354,5.2297,1912.1,1912.0,5.23006]
[1742331718527,5.2297,1912.1,1911.9,5.23035]
[1742331718528,3.37189264,1912.1,1911.9,10.4606]
[1742331718731,8.28789264,1912.1,1912.0,5.23012]
[1742331720659,8.68542886,1912.1,1912.0,5.23012]
[1742331721858,8.68542886,1912.1,1911.9,10.46053]
[1742331722234,8.68542886,1912.1,1911.9,5.23025]
[1742331722554,8.68542886,1912.1,1911.9,10.4605]
[1742331722755,8.68542886,1912.1,1911.9,5.23025]
[1742331723678,8.68542886,1912.1,1911.9,10.46052]
[1742331723838,8.68542886,1912.1,1912.0,5.23012]
[1742331726826,8.68542886,1912.1,1911.9,5.23025]
[1742331727560,3.37189264,1912.0,1911.9,5.23025]
[1742331727729,3.37189264,1912.0,1911.8,5.23056]
[1742331727932,8.60210264,1912.0,1911.7,5.23091]
[1742331728127,3.37189264,1911.8,1911.6,5.23112]
[1742331728360,4.916,1911.7,1911.6,5.23112]
[1742331728764,4.916,1911.7,1911.4,5.23165]
[1742331728961,3.37189264,1911.5,1911.4,10.46329]
[1742331729169,3.37189264,1911.5,1911.4,5.23164]
[1742331731780,3.37189264,1911.5,1911.4,6.03004]
[1742331732950,3.76942886,1912.1,1911.7,5.23068]
[1742331732951,8.99928886,1912.1,1911.7,5.23068]
[1742331733150,4.916,1912.0,1911.8,5.23041]
[1742331733367,4.916,1912.0,1911.9,5.23039]
[1742331734374,8.28789264,1912.0,1911.9,5.23039]
[1742331735562,3.37189264,1912.0,1911.9,6.02879]
[1742331735886,3.37189264,1912.0,1911.9,7.677765]
[1742331738587,4.917,1912.3,1912.2,6.02797]
[1742331738793,0.25701455,1912.5,1912.4,5.22903]
[1742331738942,5.17301455,1912.5,1912.4,5.22903]
[1742331739288,4.916,1912.5,1912.4,5.22903]
[1742331739976,8.28789264,1912.5,1912.4,5.22903]
[1742331740184,8.55381889,1912.5,1912.4,5.22903]
[1742331741749,8.94738172,1912.5,1912.4,5.22903]
[1742331743712,8.68145547,1912.5,1912.4,5.22903]
[1742331744292,8.68145547,1912.5,1912.3,5.22919]
[1742331744484,8.94406389,1912.5,1912.2,5.22938]
[1742331744683,3.37189264,1912.3,1912.2,10.45874]
[1742331748118,3.37189264,1912.3,1912.2,5.22936]
[1742331750428,3.37189264,1912.3,1912.2,6.03766]
[1742331758808,3.37189264,1912.3,1912.2,5.22936]
[1742331774840,4.914,1912.6,1912.5,5.22875]
[1742331775036,8.54476654,1912.6,1912.5,5.22875]
[1742331775254,7.19574196,1912.6,1912.5,5.22875]
[1742331777171,8.54475263,1912.6,1912.5,5.22875]
[1742331778074,8.93450606,1912.6,1912.5,5.22875]
[1742331784279,4.02050606,1912.6,1912.5,5.22875]
[1742331784459,8.54475263,1912.6,1912.5,6.03265]
[1742331785448,3.63075263,1912.6,1912.5,6.03265]
[1742331786554,3.37187873,1912.6,1912.5,6.03265]
[1742331787685,3.37187873,1912.6,1912.5,5.22875]
[1742331787894,3.37187873,1912.6,1912.5,4.44598373]
[1742331790374,3.37187873,1912.6,1912.4,5.22891]
[1742331790796,3.37187873,1912.6,1912.4,10.45776]
[1742331791006,3.37187873,1912.6,1912.5,5.22875]
[1742331793956,3.37187873,1912.6,1912.5,5.98795]
[1742331803268,7.33226231,1912.8,1912.7,5.22821]
[1742331803794,7.33126231,1912.8,1912.7,5.22821]
[1742331803960,2.02269124,1912.8,1912.7,5.22821]
[1742331804160,8.95738248,1912.8,1912.7,5.22821]
[1742331807402,4.04538248,1912.8,1912.7,5.22821]
[1742331807620,8.95738248,1912.8,1912.7,5.22821]
[1742331808180,2.02269124,1912.8,1912.7,5.22821]
[1742331808867,4.04538248,1912.8,1912.7,5.22821]
[1742331814569,4.88267777,1912.8,1912.7,5.22821]
[1742331814766,4.04538248,1912.8,1912.7,5.22821]
[1742331835363,5.30021919,1912.9,1912.8,5.22793]
[1742331835566,7.32291043,1912.9,1912.8,5.22793]
[1742331835766,2.41091043,1912.9,1912.8,5.22793]
[1742331835967,7.32191043,1912.9,1912.8,5.22793]
[1742331837162,2.41091043,1912.9,1912.8,5.22793]
[1742331837404,2.02269124,1912.9,1912.8,5.22793]
[1742331837596,2.02269124,1912.9,1912.8,6.355644]
[1742331837801,2.02269124,1912.9,1912.8,7.176644]
[1742331839384,2.02269124,1912.9,1912.8,6.04893]
[1742331840569,2.02269124,1912.9,1912.8,5.22793]
[1742331842306,2.02269124,1912.9,1912.8,6.04893]
[1742331842477,4.04538248,1912.9,1912.8,5.22793]
[1742331842884,4.04538248,1912.9,1912.7,5.22809]
[1742331843176,4.04538248,1912.8,1912.7,5.22808]
[1742331843904,4.43116058,1912.8,1912.7,5.22808]
[1742331844108,9.65914058,1912.8,1912.5,11.36871]
[1742331844321,2.02269124,1912.6,1912.5,14.36871]
[1742331844484,2.02269124,1912.6,1912.4,5.22899]
[1742331844693,2.02269124,1912.5,1912.4,5.22899]
[1742331845234,3.37195825,1912.5,1912.4,5.22899]
[1742331848026,3.37195825,1912.5,1912.3,5.22926]
[1742331848218,3.37195825,1912.5,1912.3,5.22916]
[1742331848539,3.37195825,1912.5,1912.3,10.45837]
[1742331849233,3.37195825,1912.5,1912.3,5.22916]
[1742331850131,3.37195825,1912.5,1912.2,5.22946]
[1742331850302,5.22849,1912.6,1912.3,5.22918]
[1742331850504,10.13822,1912.7,1912.3,10.45832]
[1742331850810,15.36659,1912.7,1912.3,10.45832]
[1742331851436,5.22854,1912.6,1912.3,5.22914]
[1742331851633,8.60106825,1912.4,1912.1,5.22981]
[1742331851833,3.37195825,1912.2,1912.1,4.23225822]
[1742331853839,3.37195825,1912.2,1911.8,6.01992]
[1742331854022,3.37195825,1912.0,1911.8,6.01991]
[1742331854351,3.37195825,1912.0,1911.9,5.23039]
[1742331854552,11.9741465,1912.0,1911.7,5.23083]
[1742331854850,3.37195825,1911.8,1911.7,8.23083]
[1742331855051,3.37195825,1911.8,1911.7,5.23083]
[1742331855756,4.911,1911.9,1911.8,5.23067]
[1742331855955,8.28295825,1911.9,1911.8,6.02007]
[1742331863728,8.28295825,1911.9,1911.8,5.23067]
[1742331864057,8.28295825,1911.9,1911.8,6.05637]
[1742331864952,8.28295825,1911.9,1911.8,5.23067]
[1742331865150,6.93515329,1911.9,1911.8,5.23067]
[1742331883220,6.93515329,1911.9,1911.7,5.23083]
[1742331883422,2.02415329,1911.8,1911.7,5.23081]
[1742331883817,2.02415329,1911.8,1911.6,0.8257]
[1742331884022,4.04830658,1911.7,1911.4,8.9837]
[1742331884234,2.02415329,1911.5,1911.4,8.2317]
[1742331888440,0.38609942,1911.8,1911.7,5.23094]
[1742331888642,6.93515329,1911.8,1911.7,5.23094]
[1742331891656,7.32912996,1911.8,1911.7,5.23094]
[1742331893254,2.02415329,1911.8,1911.7,5.23094]
[1742331893444,2.02415329,1911.8,1911.7,6.354214]
[1742331894381,2.02415329,1911.8,1911.7,10.124914]
[1742331896374,2.02415329,1911.8,1911.7,9.00164]
[1742331900313,17.69752112,1912.3,1912.0,5.23012]
[1742331900601,17.69752112,1912.3,1912.2,5.22957]
[1742331901386,2.02415329,1912.3,1912.2,8.22957]
[1742331901584,2.02415329,1912.3,1912.2,9.00327]
[1742331901789,2.02415329,1912.4,1912.3,9.003]
[1742331901984,4.91,1912.7,1912.6,5.22848]
[1742331902189,4.91,1912.7,1912.6,9.00218]
[1742331902555,17.31,1912.9,1912.8,5.22793]
[1742331902754,22.22,1912.9,1912.8,5.22793]
[1742331903488,0.1140517,1913.2,1913.1,5.22711]
[1742331903670,5.0230517,1913.2,1913.1,5.22711]
[1742331904279,0.1140517,1913.2,1913.1,5.22711]
[1742331905090,0.38141481,1913.2,1913.1,5.22711]
[1742331905293,0.1140517,1913.2,1913.1,5.22711]
[1742331908774,0.1140517,1913.2,1913.0,5.22728]
[1742331909307,0.1140517,1913.2,1912.9,5.22757]
[1742331909496,0.1140517,1913.2,1913.0,5.22735]
[1742331909880,0.1140517,1913.2,1913.0,5.22727]
[1742331910503,0.1140517,1913.2,1913.1,5.22711]
[1742331912677,0.1140517,1913.2,1913.0,5.22734]
[1742331913274,0.1140517,1913.2,1912.9,5.2275]
[1742331913474,0.1140517,1913.2,1912.9,10.45498]
[1742331913923,0.1140517,1913.2,1912.9,5.22748]
[1742331915284,0.1140517,1913.2,1912.7,5.22819]
[1742331915490,0.1140517,1913.2,1913.0,5.22713]
[1742331915690,0.1140517,1913.2,1913.1,5.22711]
[1742331916086,0.1140517,1913.2,1913.0,10.45437]
[1742331916291,0.1140517,1913.2,1913.0,10.45441]
[1742331916680,0.1140517,1913.2,1913.0,5.22713]
[1742331916902,0.1140517,1913.2,1912.9,10.45524]
[1742331917103,0.1140517,1913.2,1912.9,10.45512]
[1742331917478,0.1140517,1913.2,1912.9,10.45504]
[1742331917880,0.1140517,1913.2,1912.9,5.2275]
[1742331918225,0.1140517,1913.2,1912.8,10.4557]
[1742331918418,10.5680417,1913.2,1912.8,10.45558]
[1742331918594,5.3410417,1913.2,1912.9,5.22765]
[1742331919514,10.5680917,1913.2,1912.8,5.22779]
[1742331919814,10.5680917,1913.2,1913.0,0.00201764]
[1742331920015,5.22711,1913.1,1913.0,0.00201764]
[1742331923534,0.1140517,1913.2,1913.1,5.22711]
[1742331923740,5.0210517,1913.2,1913.1,5.22711]
[1742331924028,5.0210517,1913.2,1912.9,5.22756]
[1742331924233,5.0210517,1913.2,1913.0,5.22724]
[1742331925815,5.0210517,1913.2,1913.0,5.22722]
[1742331926005,5.0210517,1913.2,1913.0,10.45448]
[1742331926326,5.0210517,1913.2,1913.1,5.22711]
[1742331926901,0.1140517,1913.2,1913.1,5.22711]
[1742331927102,5.0210517,1913.2,1913.1,5.22711]
[1742331928588,5.0210517,1913.2,1913.0,4.64529748]
[1742331929834,5.0210517,1913.2,1913.0,9.87253748]
[1742331931920,5.0210517,1913.2,1913.1,5.22711]
[1742331932232,5.0210517,1913.2,1913.0,4.64529748]
[1742331932534,5.0210517,1913.2,1913.1,5.22711]
[1742331932896,5.0210517,1913.2,1913.1,5.48620171]
[1742331933239,0.1140517,1913.2,1913.1,5.48620171]
[1742331933443,5.0210517,1913.2,1913.1,5.48620171]
[1742331943744,10.2478917,1913.2,1913.1,0.25909171]
[1742331944047,10.2478917,1913.2,1913.1,0.23840809]
[1742331944228,10.2478917,1913.2,1912.8,10.45543]
[1742331944425,10.2478917,1913.2,1913.1,0.23844103]
[1742331944631,10.2478917,1913.2,1912.9,5.22759]
[1742331944820,10.2478917,1913.2,1913.1,0.23844103]
[1742331945023,10.2478917,1913.2,1912.9,5.22759]
[1742331945344,10.2478917,1913.2,1913.1,0.23844103]
[1742331945546,15.4748917,1913.2,1912.9,5.22759]
[1742331945710,10.2478917,1913.2,1913.1,0.23844103]
[1742331945911,10.2478917,1913.2,1912.9,5.22759]
[1742331946139,10.2478917,1913.2,1913.1,0.23844103]
[1742331946344,11.30404436,1913.2,1912.9,5.22759]
[1742331946946,11.30404436,1913.2,1913.0,0.23844103]
[1742331947509,5.22783,1912.9,1912.5,11.36867]
[1742331947818,5.22783,1912.9,1912.5,5.22849]
[1742331947819,5.22782,1912.9,1912.5,5.22849]
[1742331948035,4.906,1912.8,1912.5,5.22849]
[1742331948553,4.906,1912.8,1912.5,10.4571]
[1742331949237,4.906,1912.8,1912.5,5.22849]
[1742331949429,4.906,1912.8,1912.6,5.22848]
[1742331950540,4.906,1912.8,1912.5,10.45715]
[1742331950743,4.906,1912.8,1912.5,10.45709]
[1742331951045,4.906,1912.8,1912.6,5.22834]